bitfinex-derivatives/quotes_SOLF0:USTF0_20260203
["timestamp","ask_amount","ask_price","bid_price","bid_amount"]
[1770091728178,15.2562428,103.97,103.92,19.52779838]
[1770091730389,15.45116019,103.95,103.9,20.46994383]
[1770091732281,11.0099215,103.95,103.9,20.46994383]
[1770091732893,15.45116019,103.95,103.9,20.46994383]
[1770091733093,4.44123869,103.94,103.9,20.46994383]
[1770091733987,4.44123869,103.94,103.9,11.79914383]
[1770091737997,4.44123869,103.93,103.9,11.79914383]
[1770091739900,15.62318569,103.94,103.9,11.79914383]
[1770091742497,15.62318569,103.96,103.91,11.63644634]
[1770091742893,11.181947,103.98,103.93,11.63644634]
[1770091743096,4.44123869,103.98,103.93,11.63644634]
[1770091743297,15.62318569,103.99,103.93,11.63644634]
[1770091744300,15.62318569,103.99,103.94,20.30414634]
[1770091745505,11.181947,103.99,103.94,20.30414634]
[1770091745799,15.62318569,103.96,103.92,8.6693]
[1770091747803,4.44123869,103.97,103.92,20.30574634]
[1770091748003,15.62318569,103.98,103.93,20.30514634]
[1770091749197,4.44123869,103.97,103.93,20.30514634]
[1770091750105,15.62318569,103.98,103.93,20.30514634]
[1770091755505,4.44123869,103.97,103.93,20.30514634]
[1770091755805,15.62318569,103.98,103.93,20.30514634]
[1770091758410,15.62602287,103.98,103.93,20.30514634]
[1770091758810,15.62602287,103.98,103.94,8.6677]
[1770091760614,11.181947,103.98,103.94,8.6677]
[1770091762915,15.62602287,103.98,103.94,8.6677]
[1770091764514,15.62602287,103.98,103.93,11.63644634]
[1770091765111,15.62602287,103.98,103.94,8.6677]
[1770091765818,11.40572011,104.02,103.97,11.56060209]
[1770091766015,15.84979598,104.02,103.97,11.56060209]
[1770091766217,11.40572011,104.01,103.97,11.56060209]
[1770091766417,11.40572011,104.01,103.95,146.38060209]
[1770091767115,11.40572011,104.01,103.97,8.6653]
[1770091768118,15.84979598,104.01,103.97,8.6653]
[1770091768716,11.40572011,104.0,103.97,8.6653]
[1770091769117,15.84979598,104.0,103.96,8.6662]
[1770091772518,11.40572011,103.99,103.96,8.6662]
[1770091772724,15.84979598,103.99,103.96,8.6662]
[1770091775829,11.40572011,103.99,103.96,8.6662]
[1770091776632,11.40572011,103.99,103.95,8.667]
[1770091778226,15.84979598,103.97,103.92,11.56060209]
[1770091778427,11.40572011,103.96,103.92,11.56060209]
[1770091779430,11.40572011,103.96,103.92,20.22940209]
[1770091779931,15.84979598,103.96,103.92,20.22940209]
[1770091782334,11.77788593,103.98,103.93,20.09963756]
[1770091782534,16.2219618,103.98,103.93,20.09963756]
[1770091783533,11.77788593,103.98,103.94,20.09883756]
[1770091783935,16.2219618,104.0,103.94,20.09883756]
[1770091784135,11.77788593,103.99,103.94,20.09883756]
[1770091784734,11.77788593,103.99,103.95,8.6668]
[1770091788436,16.2219618,104.02,103.97,11.43103756]
[1770091789031,134.7022,104.05,103.95,139.26347587]
[1770091789032,16.2219618,104.01,103.95,20.09733756]
[1770091789236,16.2219618,104.01,103.96,11.43103756]
[1770091789939,11.77788593,103.98,103.94,20.09883756]
[1770091791136,16.05140735,104.0,103.94,20.09883756]
[1770091791745,11.60733148,103.99,103.94,20.09883756]
[1770091792736,11.60733148,104.02,103.97,11.3205059]
[1770091793032,11.60733148,104.02,103.96,19.9864059]
[1770091793433,16.05140735,104.02,103.96,19.9864059]
[1770091793636,11.60733148,104.01,103.96,19.9864059]
[1770091797343,16.05140735,104.01,103.96,19.9864059]
[1770091799444,11.60733148,104.0,103.96,19.9864059]
[1770091800846,16.05140735,104.0,103.95,8.667]
[1770091801139,16.05140735,103.99,103.94,11.3205059]
[1770091801942,16.05140735,103.99,103.92,523.10317587]
[1770091801943,4.44407587,104.0,103.95,11.3205059]
[1770091802142,16.05140735,104.01,103.95,11.3205059]
[1770091802446,11.60733148,104.0,103.95,11.3205059]
[1770091802642,16.05140735,104.03,103.97,11.3205059]
[1770091803243,11.60733148,104.03,103.99,11.3205059]
[1770091803545,4.44407587,104.04,103.99,11.3205059]
[1770091803741,11.60733148,104.05,104.0,11.3205059]
[1770091804247,11.60733148,104.06,104.01,19.9825059]
[1770091806252,11.60733148,104.09,104.03,11.3205059]
[1770091806450,11.60733148,104.1,104.05,11.3205059]
[1770091806647,11.60733148,104.1,104.05,15.76458177]
[1770091807348,11.60733148,104.1,104.05,19.9792059]
[1770091807651,16.05140735,104.1,104.05,19.9792059]
[1770091808051,11.60733148,104.1,104.05,19.9792059]
[1770091808953,11.60733148,104.12,104.06,24.42248177]
[1770091809350,11.60733148,104.12,104.07,4.44407587]
[1770091809554,11.60733148,104.11,104.06,19.9784059]
[1770091811153,11.60733148,104.11,104.07,8.6568]
[1770091811355,11.60733148,104.13,104.07,24.42138177]
[1770091812654,11.60733148,104.13,104.08,4.44407587]
[1770091813048,11.60733148,104.13,104.08,15.76458177]
[1770091813253,4.44407587,104.12,104.08,11.3205059]
[1770091814857,11.60733148,104.13,104.08,11.3205059]
[1770091814858,16.05140735,104.13,104.08,11.3205059]
[1770091815458,11.60733148,104.13,104.08,11.3205059]
[1770091815658,16.05140735,104.13,104.08,11.3205059]
[1770091818461,16.03878798,104.13,104.08,11.3205059]
[1770091818658,11.60733148,104.11,104.06,11.3205059]
[1770091818958,16.03878798,104.11,104.06,11.3205059]
[1770091819462,16.03878798,104.1,104.04,11.3205059]
[1770091820559,10.70892848,104.08,104.03,11.19658774]
[1770091820763,15.14038498,104.07,104.01,11.19658774]
[1770091820961,4.4314565,104.06,104.01,11.19658774]
[1770091821160,4.4314565,104.05,104.01,11.19658774]
[1770091822264,15.14038498,104.06,104.01,11.19658774]
[1770091822965,4.4314565,104.05,104.01,11.19658774]
[1770091823573,4.4314565,104.04,103.99,11.19658774]
[1770091823775,4.4314565,104.02,103.97,11.19658774]
[1770091824165,4.4314565,104.01,103.97,11.19658774]
[1770091825769,4.4314565,104.02,103.97,11.19658774]
[1770091826073,15.14038498,104.07,104.0,11.19658774]
[1770091826976,10.70892848,104.07,104.02,11.19658774]
[1770091827176,4.4314565,104.08,104.02,11.19658774]
[1770091827375,15.14038498,104.08,104.02,11.19658774]
[1770091828278,15.14038498,104.08,104.02,19.85778774]
[1770091828576,10.70892848,104.08,104.0,11.19658774]
[1770091829276,10.70892848,104.06,104.0,11.19658774]
[1770091829476,10.70892848,104.07,104.0,11.19658774]
[1770091829868,10.70892848,104.06,104.0,11.19658774]
[1770091831272,19.36722848,104.06,104.0,11.19658774]
[1770091831572,10.70892848,104.06,104.0,11.19658774]
[1770091831773,21.79921466,104.08,104.0,11.19658774]
[1770091831976,19.36582848,104.08,104.02,11.19658774]
[1770091832176,10.70892848,104.08,104.02,11.19658774]
[1770091833382,10.70892848,104.08,104.02,19.85758774]
[1770091833873,10.70892848,104.08,104.03,8.6603]
[1770091834069,10.70892848,104.08,104.03,19.85688774]
[1770091836681,10.70892848,104.08,104.03,11.19658774]
[1770091838380,10.70892848,104.08,104.03,19.85698774]
[1770091844188,10.70892848,104.08,104.01,19.85798774]
[1770091844388,10.70892848,104.08,104.02,11.19658774]
[1770091845389,19.36512848,104.08,104.02,11.19658774]
[1770091847190,19.36512848,104.08,104.02,19.85778774]
[1770091848491,15.14534441,104.08,104.03,11.19658774]
[1770091849691,15.14534441,104.08,104.03,19.85698774]
[1770091850090,11.05233448,104.1,104.05,10.74863583]
[1770091850393,134.5987,104.13,104.07,10.74863583]
[1770091850394,11.05233448,104.13,104.07,10.74863583]
[1770091851392,11.05233448,104.13,104.08,4.43641593]
[1770091851586,11.05233448,104.13,104.08,15.95370545]
[1770091851786,11.73856528,104.16,104.11,11.51728952]
[1770091852087,11.73856528,104.16,104.11,15.95370545]
[1770091852395,11.73856528,104.16,104.11,11.51728952]
[1770091852894,11.73856528,104.16,104.11,20.17058952]
[1770091854291,11.73856528,104.18,104.12,11.51728952]
[1770091855898,11.73856528,104.17,104.12,11.51728952]
[1770091857395,20.38736528,104.17,104.12,11.51728952]
[1770091858800,11.73856528,104.16,104.1,20.17108952]
[1770091860501,11.73856528,104.16,104.11,11.51728952]
[1770091866004,11.73856528,104.16,104.09,20.17268952]
[1770091866205,11.73856528,104.16,104.1,11.51728952]
[1770091866702,11.73856528,104.15,104.08,394.93728952]
[1770091867005,11.73856528,104.14,104.08,11.51728952]
[1770091868301,20.38986528,104.14,104.08,11.51728952]
[1770091868705,11.73856528,104.13,104.06,11.51728952]
[1770091870405,8.6529,104.12,104.06,11.51728952]
[1770091870600,11.73856528,104.12,104.06,11.51728952]
[1770091872505,13.08696466,104.11,104.06,11.51728952]
[1770091872703,16.17172994,104.12,104.06,11.51728952]
[1770091873804,4.43316466,104.11,104.06,11.51728952]
[1770091875203,16.17172994,104.12,104.07,11.51728952]
[1770091878509,16.17096171,104.12,104.07,11.51728952]
[1770091879604,16.17096171,104.11,104.05,11.51728952]
[1770091879914,11.73856528,104.14,104.07,11.51728952]
[1770091880213,16.17096171,104.14,104.08,11.51728952]
[1770091881116,11.73856528,104.14,104.09,10.60302532]
[1770091882407,11.73856528,104.14,104.09,19.25842532]
[1770091882712,11.73856528,104.14,104.09,23.69082175]
[1770091884212,11.73856528,104.14,104.1,10.60302532]
[1770091884417,11.60483567,104.16,104.1,15.03542175]
[1770091884715,11.60483567,104.16,104.1,23.68972175]
[1770091886517,11.60483567,104.16,104.11,10.60302532]
[1770091886819,20.25433567,104.17,104.11,23.68892175]
[1770091888214,24.6852321,104.18,104.12,10.60302532]
[1770091888413,11.60483567,104.22,104.16,15.03542175]
[1770091888815,16.0372321,104.21,104.16,10.60302532]
[1770091889315,16.0372321,104.2,104.14,10.60302532]
[1770091890410,16.0372321,104.22,104.16,10.60302532]
[1770091890610,11.60483567,104.22,104.16,15.03542175]
[1770091891012,11.60483567,104.22,104.17,10.60302532]
[1770091891516,310.92,104.26,104.16,4.43239643]
[1770091891517,11.60483567,104.27,104.18,10.60302532]
[1770091891718,16.0372321,104.26,104.2,10.60302532]
[1770091892118,4.43239643,104.25,104.2,10.60302532]
[1770091892320,16.0372321,104.25,104.2,10.60302532]
[1770091893821,11.60483567,104.25,104.2,10.60302532]
[1770091894623,16.0372321,104.25,104.2,10.60302532]
[1770091896927,16.0372321,104.25,104.19,10.60302532]
[1770091897922,16.0372321,104.23,104.17,10.60302532]
[1770091898824,4.43239643,104.22,104.17,10.60302532]
[1770091899825,16.0372321,104.23,104.17,10.60302532]
[1770091900124,24.6801321,104.23,104.17,10.60302532]
[1770091901327,4.43239643,104.25,104.19,10.60302532]
[1770091901823,16.0372321,104.26,104.2,10.60302532]
[1770091905527,16.0372321,104.26,104.2,19.24842532]
[1770091907134,4.43239643,104.27,104.22,10.60302532]
[1770091907332,16.0372321,104.28,104.22,10.60302532]
[1770091907527,24.6760321,104.28,104.22,10.60302532]
[1770091907831,16.0372321,104.27,104.22,10.60302532]
[1770091909230,8.6388,104.28,104.22,10.60302532]
[1770091909533,11.60483567,104.29,104.23,10.60302532]
[1770091909534,16.0372321,104.29,104.23,10.60302532]
[1770091909733,11.60483567,104.29,104.23,10.60302532]
[1770091910333,24.70900099,104.31,104.25,12.110679]
[1770091911135,19.5811205,104.33,104.27,11.95365235]
[1770091911336,24.01351693,104.33,104.27,11.95365235]
[1770091911632,4.43239643,104.32,104.27,11.95365235]
[1770091912827,4.43239643,104.31,104.27,11.95365235]
[1770091913234,15.37831693,104.32,104.27,11.95365235]
[1770091914433,8.6348,104.33,104.27,11.95365235]
[1770091914639,4.43239643,104.32,104.27,11.95365235]
[1770091915234,10.9459205,104.31,104.25,20.59475235]
[1770091915439,10.9459205,104.31,104.26,11.95365235]
[1770091916440,15.37831693,104.31,104.26,11.95365235]
[1770091918341,24.01471693,104.31,104.26,11.95365235]
[1770091918636,134.3183,104.33,104.24,11.95365235]
[1770091918637,10.9459205,104.3,104.24,11.95365235]
[1770091918843,4.43239643,104.29,104.24,11.95365235]
[1770091919140,15.37831693,104.3,104.24,11.95365235]
[1770091920343,19.5832205,104.3,104.24,11.95365235]
[1770091920536,15.37831693,104.32,104.25,11.95365235]
[1770091920734,15.37831693,104.32,104.26,11.95365235]
[1770091920937,19.5814205,104.32,104.26,11.95365235]
[1770091921738,10.9459205,104.32,104.27,11.95365235]
[1770091922746,10.9459205,104.32,104.27,20.59315235]
[1770091923144,8.6312,104.38,104.3,11.95365235]
[1770091923346,4.43239643,104.39,104.33,11.95365235]
[1770091923544,243.54,104.45,104.35,11.95365235]
[1770091923852,136.92518636,104.47,104.37,11.95365235]
[1770091923853,4.43239643,104.44,104.37,11.95365235]
[1770091924142,4.43239643,104.4,104.35,11.95365235]
[1770091924341,11.02127727,104.42,104.35,11.95365235]
[1770091924541,145.22517727,104.42,104.34,271.28]
[1770091925049,441.3769,104.44,104.35,11.95365235]
[1770091925346,145.18497727,104.45,104.36,11.95365235]
[1770091925544,10.9459205,104.44,104.36,11.95365235]
[1770091925746,10.9459205,104.42,104.36,11.95365235]
[1770091926740,10.9459205,104.42,104.34,283.23365235]
[1770091926945,10.9459205,104.42,104.34,11.95365235]
[1770091927248,10.9459205,104.4,104.34,11.95365235]
[1770091927751,21.96719777,104.39,104.32,11.95365235]
[1770091927947,19.5767205,104.38,104.32,11.95365235]
[1770091928343,10.9459205,104.38,104.32,11.95365235]
[1770091931252,10.9459205,104.37,104.3,20.59055235]
[1770091931746,10.9459205,104.37,104.31,11.95365235]
[1770091932652,19.5775205,104.37,104.31,11.95365235]
[1770091934255,19.5782205,104.36,104.29,394.51365235]
[1770091934850,19.5790205,104.35,104.29,11.95365235]
[1770091935551,10.9459205,104.33,104.27,11.95365235]
[1770091935951,19.5817205,104.32,104.27,11.95365235]
[1770091936449,19.5824205,104.31,104.25,394.43365235]
[1770091936653,10.9459205,104.31,104.25,11.95365235]
[1770091936853,10.9459205,104.31,104.2,145.49797727]
[1770091936854,10.9459205,104.29,104.22,11.95365235]
[1770091937052,10.9459205,104.28,104.22,11.95365235]
[1770091944652,19.5848205,104.28,104.22,11.95365235]
[1770091944958,11.99766517,104.27,104.19,402.94753437]
[1770091945158,11.99766517,104.27,104.2,11.84183437]
[1770091945360,20.63736517,104.27,104.2,11.84183437]
[1770091945951,11.99766517,104.27,104.21,11.84183437]
[1770091946755,11.99766517,104.27,104.21,20.48633437]
[1770091948668,11.99766517,104.27,104.21,11.84183437]
[1770091950363,20.63736517,104.27,104.21,11.84183437]
[1770091952266,11.99766517,104.27,104.21,20.48633437]
[1770091953162,11.99766517,104.29,104.23,11.84183437]
[1770091953467,11.99766517,104.31,104.24,11.84183437]
[1770091954466,11.99766517,104.31,104.25,20.48293437]
[1770091956065,20.63396517,104.31,104.25,11.84183437]
[1770091958072,20.63486517,104.3,104.23,11.84183437]
[1770091959263,20.63486517,104.3,104.23,20.48463437]
[1770091961074,20.63486517,104.3,104.24,11.84183437]
[1770091961274,11.99766517,104.3,104.25,11.84183437]
[1770091961675,20.63376517,104.32,104.26,20.48223437]
[1770091961974,20.63156517,104.34,104.27,11.84183437]
[1770091962371,11.99766517,104.33,104.27,11.84183437]
[1770091963276,11.99766517,104.33,104.27,20.48133437]
[1770091968383,11.99766517,104.33,104.27,24.89523833]
[1770091968580,11.99766517,104.35,104.3,16.25573833]
[1770091968780,11.99766517,104.35,104.3,4.41390396]
[1770091969081,11.99766517,104.35,104.3,24.89243833]
[1770091969286,11.99766517,104.39,104.33,16.25573833]
[1770091969987,20.62736517,104.39,104.33,16.25573833]
[1770091970184,11.99766517,104.39,104.35,4.41390396]
[1770091970384,11.99766517,104.39,104.33,11.84183437]
[1770091972283,13.35101118,104.38,104.33,11.84183437]
[1770091972485,13.35101118,104.38,104.31,13.28613761]
[1770091973378,21.98191118,104.38,104.31,21.92233761]
[1770091973690,13.35101118,104.37,104.31,21.92233761]
[1770091975388,13.35101118,104.37,104.32,13.28613761]
[1770091978490,21.98071118,104.39,104.32,13.28613761]
[1770091979493,13.35101118,104.38,104.32,13.28613761]
[1770091980293,8.6317,104.37,104.32,13.28613761]
[1770091980595,8.6317,104.37,104.3,330.00283761]
[1770091980596,13.35101118,104.36,104.3,330.00283761]
[1770091980791,8.6317,104.37,104.31,13.28613761]
[1770091980991,21.98271118,104.37,104.31,13.28613761]
[1770091981990,13.35101118,104.36,104.31,13.28613761]
[1770091988898,21.98321118,104.36,104.31,13.28613761]
[1770091989897,21.98321118,104.36,104.29,8.6377]
[1770091989898,13.35101118,104.35,104.29,21.92383761]
[1770091990204,13.35101118,104.34,104.28,13.28613761]
[1770091990406,17.76506456,104.34,104.28,13.28613761]
[1770091991102,13.35101118,104.34,104.29,13.28613761]
[1770091991298,17.76506456,104.36,104.3,13.28613761]
[1770091991699,13.35101118,104.36,104.31,13.28613761]
[1770091991899,17.76506456,104.38,104.32,13.28613761]
[1770091992300,21.98231118,104.38,104.32,17.70019099]
[1770091993003,26.39636456,104.38,104.32,13.28613761]
[1770091993404,21.98241118,104.37,104.32,13.28613761]
[1770091995404,21.98241118,104.37,104.32,17.70019099]
[1770091997512,13.35101118,104.37,104.32,17.70019099]
[1770091998012,8.6305,104.38,104.33,4.41405338]
[1770091998204,21.98151118,104.38,104.33,4.41405338]
[1770091998407,21.98151118,104.38,104.32,26.33559099]
[1770092002311,26.39556456,104.38,104.32,13.28613761]
[1770092002512,8.6314,104.37,104.32,13.28613761]
[1770092002911,18.0889395,104.36,104.3,13.09795653]
[1770092003116,4.41032188,104.35,104.3,13.09795653]
[1770092003418,18.0889395,104.34,104.29,8.6374]
[1770092005312,13.67861762,104.34,104.29,21.73535653]
[1770092010229,26.7230395,104.34,104.29,13.09795653]
[1770092013728,22.31271762,104.34,104.29,13.09795653]
[1770092015925,13.04332188,104.35,104.3,13.09795653]
[1770092016229,26.7219395,104.35,104.3,13.09795653]
[1770092017325,8.6322,104.36,104.31,13.09795653]
[1770092017525,18.0889395,104.37,104.31,13.09795653]
[1770092018025,13.67861762,104.37,104.31,17.50827841]
[1770092018230,13.67861762,104.37,104.31,13.09795653]
[1770092018438,22.31001762,104.37,104.31,21.73415653]
[1770092020129,26.7203395,104.37,104.31,21.73415653]
[1770092023633,13.67861762,104.37,104.32,13.09795653]
[1770092025230,13.67861762,104.36,104.32,13.09795653]
[1770092028035,22.31101762,104.36,104.3,17.50827841]
[1770092028637,22.31101762,104.36,104.3,26.14537841]
[1770092031739,8.633,104.35,104.3,17.50827841]
[1770092032234,8.633,104.35,104.3,13.09795653]
[1770092032438,8.633,104.35,104.3,21.73505653]
[1770092032737,22.31081762,104.36,104.31,13.9015548]
[1770092033134,147.55633914,104.4,104.33,13.9015548]
[1770092033438,13.32843914,104.39,104.34,13.9015548]
[1770092034337,21.95813914,104.39,104.34,13.9015548]
[1770092034639,13.32843914,104.38,104.34,13.9015548]
[1770092038541,17.73876102,104.37,104.32,13.9015548]
[1770092038742,17.73876102,104.36,104.31,8.6363]
[1770092039143,17.73876102,104.36,104.31,22.5378548]
[1770092040233,13.32843914,104.36,104.31,22.5378548]
[1770092040433,17.73876102,104.36,104.31,13.9015548]
[1770092041239,17.73876102,104.33,104.27,22.5403548]
[1770092041443,4.41032188,104.32,104.27,22.5403548]
[1770092041642,4.41032188,104.32,104.28,13.9015548]
[1770092042242,17.73876102,104.33,104.28,22.5402548]
[1770092044643,4.41032188,104.32,104.28,13.9015548]
[1770092052264,17.73876102,104.32,104.28,13.9015548]
[1770092052664,4.41032188,104.31,104.28,13.9015548]
[1770092055464,13.32843914,104.32,104.28,13.9015548]
[1770092055661,17.73876102,104.32,104.28,13.9015548]
[1770092055861,4.41032188,104.31,104.28,13.9015548]
[1770092057967,17.73876102,104.32,104.28,13.9015548]
[1770092060865,4.41032188,104.31,104.28,13.9015548]
[1770092061061,17.84384025,104.31,104.26,21.93869611]
[1770092064568,17.84975916,104.31,104.26,21.93869611]
[1770092066569,4.41624079,104.32,104.27,21.93759611]
[1770092072376,4.41624079,104.31,104.27,21.93759611]
[1770092074473,4.41624079,104.31,104.28,13.29829611]
[1770092074776,22.06741837,104.34,104.29,13.29829611]
[1770092076581,13.43351837,104.36,104.31,13.29829611]
[1770092077979,13.43351837,104.36,104.31,17.7145369]
[1770092078380,13.43351837,104.36,104.31,26.3507369]
[1770092079085,13.43351837,104.36,104.32,4.41624079]
[1770092079478,13.43351837,104.36,104.31,21.93449611]
[1770092079685,13.43351837,104.36,104.32,4.41624079]
[1770092081186,13.43351837,104.36,104.31,13.29829611]
[1770092081484,17.84975916,104.36,104.31,13.29829611]
[1770092082279,13.43351837,104.36,104.31,13.29829611]
[1770092082980,17.84975916,104.36,104.31,13.29829611]
[1770092083887,13.43351837,104.39,104.33,17.7145369]
[1770092084083,13.43351837,104.39,104.34,4.41624079]
[1770092085288,13.43351837,104.39,104.35,4.41624079]
[1770092085482,22.06191837,104.41,104.36,13.29829611]
[1770092085690,22.06191837,104.41,104.36,17.7145369]
[1770092087084,8.6284,104.41,104.36,13.29829611]
[1770092087289,8.6284,104.41,104.36,17.7145369]
[1770092087790,22.06191837,104.41,104.36,17.7145369]
[1770092088187,13.43351837,104.41,104.36,17.7145369]
[1770092088484,13.43351837,104.4,104.33,13.29829611]
[1770092088690,17.84975916,104.39,104.33,13.29829611]
[1770092090292,17.84975916,104.39,104.34,13.18900585]
[1770092092890,17.84975916,104.39,104.33,13.44983282]
[1770092092891,13.87114187,104.38,104.33,13.44983282]
[1770092093491,18.28738266,104.38,104.33,13.44983282]
[1770092093888,26.91808266,104.38,104.33,13.44983282]
[1770092094586,8.6297,104.39,104.34,13.44983282]
[1770092098896,26.91708266,104.39,104.34,13.44983282]
[1770092099297,22.50084187,104.39,104.34,13.44983282]
[1770092099496,13.87114187,104.39,104.34,13.44983282]
[1770092099700,18.28738266,104.39,104.34,13.44983282]
[1770092101197,22.50164187,104.38,104.32,22.08523282]
[1770092101398,18.28738266,104.37,104.32,13.44983282]
[1770092102399,18.28738266,104.35,104.3,13.44983282]
[1770092103403,4.41624079,104.34,104.3,13.44983282]
[1770092103705,18.28738266,104.37,104.31,13.44983282]
[1770092103902,13.87114187,104.37,104.31,13.44983282]
[1770092104906,18.28738266,104.37,104.31,13.44983282]
[1770092105501,18.28738266,104.37,104.29,13.44983282]
[1770092105502,18.28738266,104.35,104.29,13.44983282]
[1770092106098,4.41624079,104.35,104.29,13.44983282]
[1770092106304,4.41624079,104.36,104.3,13.44983282]
[1770092108403,4.41624079,104.35,104.3,13.44983282]
[1770092109203,13.04844079,104.36,104.31,13.44983282]
[1770092109398,13.04744079,104.38,104.31,13.44983282]
[1770092109898,13.04744079,104.38,104.32,13.44983282]
[1770092110702,18.28738266,104.39,104.32,17.86607361]
[1770092111002,18.28738266,104.39,104.33,13.44983282]
[1770092111703,18.28738266,104.41,104.35,13.44983282]
[1770092111902,4.41624079,104.4,104.35,13.44983282]
[1770092112401,18.28738266,104.41,104.35,13.44983282]
[1770092113401,26.91618266,104.41,104.35,13.44983282]
[1770092114106,13.04344079,104.42,104.36,13.44983282]
[1770092115401,13.04344079,104.42,104.36,22.08193282]
[1770092115907,26.91458266,104.42,104.36,22.08193282]
[1770092123019,4.41624079,104.41,104.36,22.08193282]
[1770092123720,22.49834187,104.42,104.37,14.19539938]
[1770092124017,18.71872112,104.44,104.38,14.19539938]
[1770092124417,4.4052322,104.43,104.38,14.19539938]
[1770092124616,4.4052322,104.42,104.38,14.19539938]
[1770092124812,18.70771253,104.42,104.38,14.19539938]
[1770092125020,18.70771253,104.42,104.36,14.19539938]
[1770092125219,18.70771253,104.41,104.36,22.82669938]
[1770092126117,4.4052322,104.4,104.36,14.19539938]
[1770092126315,18.70771253,104.38,104.33,396.45539938]
[1770092126514,18.70771253,104.38,104.33,14.19539938]
[1770092128318,4.4052322,104.37,104.33,14.19539938]
[1770092128522,4.4052322,104.39,104.34,14.19539938]
[1770092128725,14.30248033,104.4,104.34,18.60063158]
[1770092129425,14.30248033,104.39,104.34,18.60063158]
[1770092130625,14.30248033,104.39,104.35,4.4052322]
[1770092130820,22.93038033,104.42,104.37,18.60063158]
[1770092131127,14.30248033,104.42,104.37,18.60063158]
[1770092131331,4.4052322,104.44,104.35,14.19539938]
[1770092131332,14.30248033,104.4,104.35,14.19539938]
[1770092131828,14.30248033,104.4,104.35,18.60063158]
[1770092132427,14.30248033,104.4,104.35,27.23323158]
[1770092132628,14.30248033,104.4,104.35,18.60063158]
[1770092132830,14.30248033,104.4,104.33,382.26]
[1770092132831,18.70771253,104.4,104.34,18.60063158]
[1770092133130,14.30248033,104.4,104.34,27.23433158]
[1770092134927,14.30248033,104.4,104.35,4.4052322]
[1770092135132,14.30248033,104.4,104.35,18.60063158]
[1770092137230,18.70771253,104.42,104.36,18.60063158]
[1770092137434,14.30248033,104.42,104.37,18.60063158]
[1770092138632,14.30248033,104.41,104.35,27.23333158]
[1770092140536,14.30248033,104.41,104.36,4.4052322]
[1770092140731,14.30248033,104.4,104.35,18.60063158]
[1770092144737,14.30248033,104.39,104.35,4.4052322]
[1770092144933,14.30248033,104.39,104.34,22.82879938]
[1770092144934,17.08196669,104.47,104.4,14.19539938]
[1770092145235,17.08196669,104.47,104.4,18.60063158]
[1770092145236,14.30248033,104.46,104.4,18.60063158]
[1770092145637,22.92638033,104.46,104.4,18.60063158]
[1770092146439,14.30248033,104.46,104.42,4.4052322]
[1770092148042,14.30248033,104.45,104.41,4.4052322]
[1770092148243,14.30248033,104.45,104.4,18.60063158]
[1770092148738,14.30248033,104.44,104.4,4.4052322]
[1770092148941,14.30248033,104.44,104.39,4.4052322]
[1770092149136,14.30248033,104.44,104.36,382.26]
[1770092149342,14.30248033,104.44,104.38,4.4052322]
[1770092149842,14.30248033,104.44,104.39,4.4052322]
[1770092150342,14.02792276,104.43,104.38,4.4052322]
[1770092151048,4.4052322,104.42,104.37,14.19539938]
[1770092152340,26.24754311,104.42,104.37,14.19539938]
[1770092154746,17.62024311,104.4,104.35,13.54260138]
[1770092155051,13.21501091,104.39,104.33,13.54260138]
[1770092155551,4.4052322,104.38,104.33,13.54260138]
[1770092155952,4.4052322,104.37,104.33,13.54260138]
[1770092156153,4.4052322,104.37,104.3,13.54260138]
[1770092157449,4.4052322,104.36,104.31,13.54260138]
[1770092157752,4.4052322,104.35,104.31,13.54260138]
[1770092159157,17.62024311,104.36,104.31,13.54260138]
[1770092161559,427.2503,104.4,104.28,534.11535265]
[1770092161560,13.21501091,104.31,104.28,17.52235265]
[1770092161761,13.21501091,104.31,104.26,22.18250138]
[1770092162055,13.21501091,104.31,104.26,13.54260138]
[1770092162056,4.4052322,104.3,104.26,13.54260138]
[1770092162353,13.21501091,104.35,104.27,13.54260138]
[1770092162561,13.21501091,104.35,104.29,13.54260138]
[1770092162757,17.62024311,104.35,104.29,13.54260138]
[1770092163056,4.4052322,104.34,104.29,13.54260138]
[1770092164563,4.4052322,104.33,104.27,22.18200138]
[1770092164763,4.4052322,104.33,104.28,13.54260138]
[1770092164959,17.62024311,104.34,104.28,13.54260138]
[1770092165862,4.4052322,104.33,104.28,13.54260138]
[1770092166063,4.4052322,104.32,104.28,13.54260138]
[1770092166560,4.4052322,104.33,104.28,13.54260138]
[1770092168956,17.62024311,104.33,104.28,13.54260138]
[1770092169264,4.4052322,104.32,104.26,13.54260138]
[1770092169660,4.4052322,104.31,104.26,22.18300138]
[1770092175564,4.4052322,104.31,104.27,13.54260138]
[1770092177572,26.25404311,104.34,104.28,13.54260138]
[1770092177966,4.4052322,104.33,104.28,13.54260138]
[1770092178675,26.25404311,104.34,104.28,13.54260138]
[1770092179471,26.25404311,104.34,104.28,22.18120138]
[1770092180467,13.66827728,104.31,104.24,13.82222782]
[1770092180665,4.4052322,104.28,104.24,13.82222782]
[1770092181172,4.4052322,104.27,104.24,13.82222782]
[1770092181371,4.4052322,104.27,104.22,13.82222782]